[Event "Titled Tuesday Blitz June 1 2021"]
[White "Moskalenko, Alexander"]
[Black "Sychev, Klementy"]
[WhiteFideId "4155351"]
[BlackFideId "4114060"]
[WhiteElo "2495"]
[BlackElo "2615"]
[Result "1-0"]
[Round "09"]
[TimeControl "180+1"]
[Date "2021.06.01"]
[WhiteClock "0:01:02"]
[BlackClock "0:00:04"]

1. d4 {[%clk 0:03:00]}  Nf6 {[%clk 0:02:57]} 2. c4 {[%clk 0:02:57]}  g6 {[%clk 0:02:54]} 3. g3 {[%clk 0:02:57]}  c5 {[%clk 0:02:43]} 4. dxc5 {[%clk 0:02:57]}  Bg7 {[%clk 0:02:36]} 5. Bg2 {[%clk 0:02:57]}  Na6 {[%clk 0:02:36]} 6. Be3 {[%clk 0:02:52]}  O-O {[%clk 0:02:25]} 7. Nc3 {[%clk 0:02:52]}  Ng4 {[%clk 0:02:22]} 8. Bd2 {[%clk 0:02:44]}  Nxc5 {[%clk 0:02:20]} 9. Nh3 {[%clk 0:02:40]}  Ne5 {[%clk 0:02:12]} 10. b3 {[%clk 0:02:39]}  d5 {[%clk 0:01:27]} 11. cxd5 {[%clk 0:02:34]}  b5 {[%clk 0:01:23]} 12. a3 {[%clk 0:02:24]}  a5 {[%clk 0:01:02]} 13. O-O {[%clk 0:02:23]}  Bxh3 {[%clk 0:00:57]} 14. Bxh3 {[%clk 0:02:22]}  b4 {[%clk 0:00:55]} 15. axb4 {[%clk 0:02:10]}  axb4 {[%clk 0:00:55]} 16. Rxa8 {[%clk 0:02:10]}  Qxa8 {[%clk 0:00:55]} 17. Nb1 {[%clk 0:02:11]}  Rb8 {[%clk 0:00:44]} 18. Be3 {[%clk 0:02:06]}  Ne4 {[%clk 0:00:43]} 19. Qc2 {[%clk 0:02:01]}  Nd6 {[%clk 0:00:41]} 20. f4 {[%clk 0:01:44]}  Qxd5 {[%clk 0:00:16]} 21. fxe5 {[%clk 0:01:44]}  Nb5 {[%clk 0:00:16]} 22. Qc4 {[%clk 0:01:40]}  Qxc4 {[%clk 0:00:16]} 23. bxc4 {[%clk 0:01:40]}  Na3 {[%clk 0:00:13]} 24. Nxa3 {[%clk 0:01:18]}  bxa3 {[%clk 0:00:13]} 25. Ra1 {[%clk 0:01:18]}  Rb3 {[%clk 0:00:12]} 26. Bc5 {[%clk 0:01:15]}  Bxe5 {[%clk 0:00:09]} 27. Rxa3 {[%clk 0:01:15]}  Rb2 {[%clk 0:00:09]} 28. Bf1 {[%clk 0:01:13]}  e6 {[%clk 0:00:07]} 29. Ra8+ {[%clk 0:01:11]}  Kg7 {[%clk 0:00:07]} 30. Bf8+ {[%clk 0:01:11]}  Kf6 {[%clk 0:00:08]} 31. Bc5 {[%clk 0:01:09]}  Rc2 {[%clk 0:00:07]} 32. e3 {[%clk 0:01:09]}  Bc3 {[%clk 0:00:06]} 33. Bd4+ {[%clk 0:01:09]}  Kf5 {[%clk 0:00:06]} 34. Bxc3 {[%clk 0:01:08]}  Rxc3 {[%clk 0:00:07]} 35. Kf2 {[%clk 0:01:07]}  Ke4 {[%clk 0:00:05]} 36. Bg2+ {[%clk 0:01:07]}  Ke5 {[%clk 0:00:05]} 37. Bf1 {[%clk 0:01:07]}  Ke4 {[%clk 0:00:05]} 38. Ra7 {[%clk 0:01:06]}  Rc2+ {[%clk 0:00:04]} 39. Be2 {[%clk 0:01:06]}  f5 {[%clk 0:00:04]} 40. Rxh7 {[%clk 0:01:06]}  g5 {[%clk 0:00:04]} 41. Re7 {[%clk 0:01:03]}  e5 {[%clk 0:00:04]} 42. h4 {[%clk 0:01:03]}  gxh4 {[%clk 0:00:03]} 43. gxh4 {[%clk 0:01:04]}  Rc1 {[%clk 0:00:04]} 44. Bf3+ {[%clk 0:01:02]}  Kd3 {[%clk 0:00:04]} 45. Rxe5 {[%clk 0:01:02]}  Rxc4 {[%clk 0:00:04]} 46. Be2+ {[%clk 0:01:02]} 1-0


[Site "https://www.chess.com"]

[Event "Titled Tuesday Blitz June 1 2021"]
[White "Oparin, Grigoriy"]
[Black "Dang, Hoang Son"]
[WhiteFideId "24125890"]
[BlackFideId "12402435"]
[WhiteElo "2628"]
[BlackElo "2248"]
[Result "1-0"]
[Round "09"]
[TimeControl "180+1"]
[Date "2021.06.01"]
[WhiteClock "0:02:18"]
[BlackClock "0:01:13"]

1. c4 {[%clk 0:03:00]}  Nf6 {[%clk 0:03:00]} 2. Nf3 {[%clk 0:03:01]}  g6 {[%clk 0:03:00]} 3. g3 {[%clk 0:03:01]}  Bg7 {[%clk 0:03:01]} 4. Nc3 {[%clk 0:03:02]}  O-O {[%clk 0:02:58]} 5. Bg2 {[%clk 0:03:02]}  d6 {[%clk 0:02:59]} 6. O-O {[%clk 0:03:02]}  Nc6 {[%clk 0:02:59]} 7. d4 {[%clk 0:03:03]}  Rb8 {[%clk 0:03:00]} 8. b3 {[%clk 0:03:02]}  a6 {[%clk 0:03:00]} 9. d5 {[%clk 0:03:03]}  Na5 {[%clk 0:02:59]} 10. Bg5 {[%clk 0:03:01]}  c5 {[%clk 0:02:59]} 11. dxc6 {[%clk 0:03:00]}  Nxc6 {[%clk 0:02:59]} 12. Rc1 {[%clk 0:03:01]}  h6 {[%clk 0:02:58]} 13. Bxf6 {[%clk 0:03:00]}  Bxf6 {[%clk 0:02:57]} 14. Qd2 {[%clk 0:03:00]}  Bg7 {[%clk 0:02:56]} 15. Rfd1 {[%clk 0:03:01]}  Bf5 {[%clk 0:02:54]} 16. Nd5 {[%clk 0:02:55]}  g5 {[%clk 0:02:54]} 17. h4 {[%clk 0:02:49]}  g4 {[%clk 0:02:49]} 18. Nh2 {[%clk 0:02:50]}  Be6 {[%clk 0:02:25]} 19. Nf4 {[%clk 0:02:48]}  Bf5 {[%clk 0:02:12]} 20. Nh5 {[%clk 0:02:49]}  Qa5 {[%clk 0:02:04]} 21. Qxa5 {[%clk 0:02:34]}  Nxa5 {[%clk 0:02:03]} 22. Rd5 {[%clk 0:02:35]}  Bg6 {[%clk 0:01:50]} 23. Nxg7 {[%clk 0:02:34]}  Nc6 {[%clk 0:01:48]} 24. Nf5 {[%clk 0:02:26]}  e6 {[%clk 0:01:45]} 25. Nxh6+ {[%clk 0:02:27]}  Kg7 {[%clk 0:01:46]} 26. Rxd6 {[%clk 0:02:28]}  Kxh6 {[%clk 0:01:46]} 27. Nxg4+ {[%clk 0:02:28]}  Kg7 {[%clk 0:01:47]} 28. Bxc6 {[%clk 0:02:26]}  bxc6 {[%clk 0:01:47]} 29. Ne5 {[%clk 0:02:26]}  c5 {[%clk 0:01:40]} 30. Nxg6 {[%clk 0:02:25]}  Kxg6 {[%clk 0:01:40]} 31. Rxa6 {[%clk 0:02:23]}  Rfd8 {[%clk 0:01:40]} 32. Rc3 {[%clk 0:02:23]}  Rd2 {[%clk 0:01:38]} 33. Re3 {[%clk 0:02:23]}  Kf5 {[%clk 0:01:35]} 34. Ra5 {[%clk 0:02:23]}  Kg4 {[%clk 0:01:32]} 35. Rxc5 {[%clk 0:02:21]}  Kh3 {[%clk 0:01:31]} 36. g4+ {[%clk 0:02:18]}  Kxg4 {[%clk 0:01:22]} 37. Kg2 {[%clk 0:02:19]}  Kxh4 {[%clk 0:01:13]} 38. Re4# {[%clk 0:02:18]} 1-0


[Site "https://www.chess.com"]

[Event "Titled Tuesday Blitz June 1 2021"]
[White "Paravyan, David"]
[Black "Rakotomaharo, Fy Antenaina"]
[WhiteFideId "4194985"]
[BlackFideId "13100050"]
[WhiteElo "2562"]
[BlackElo "2378"]
[Result "1-0"]
[Round "09"]
[TimeControl "180+1"]
[Date "2021.06.01"]
[WhiteClock "0:00:07"]
[BlackClock "0:00:01"]

1. c4 {[%clk 0:03:00]}  e5 {[%clk 0:02:58]} 2. Nc3 {[%clk 0:03:01]}  Bb4 {[%clk 0:02:58]} 3. g3 {[%clk 0:03:00]}  Bxc3 {[%clk 0:02:57]} 4. bxc3 {[%clk 0:03:01]}  f5 {[%clk 0:02:54]} 5. d3 {[%clk 0:03:00]}  Nf6 {[%clk 0:02:54]} 6. Bg2 {[%clk 0:02:57]}  O-O {[%clk 0:02:52]} 7. c5 {[%clk 0:02:50]}  Nc6 {[%clk 0:02:45]} 8. Nh3 {[%clk 0:02:46]}  b6 {[%clk 0:02:31]} 9. Ba3 {[%clk 0:02:45]}  bxc5 {[%clk 0:02:07]} 10. Bxc5 {[%clk 0:02:42]}  Re8 {[%clk 0:02:07]} 11. O-O {[%clk 0:02:31]}  d5 {[%clk 0:02:02]} 12. c4 {[%clk 0:02:29]}  e4 {[%clk 0:01:53]} 13. cxd5 {[%clk 0:02:22]}  Qxd5 {[%clk 0:01:52]} 14. Rc1 {[%clk 0:02:19]}  Qxa2 {[%clk 0:01:44]} 15. dxe4 {[%clk 0:02:05]}  fxe4 {[%clk 0:01:38]} 16. Nf4 {[%clk 0:01:58]}  Bg4 {[%clk 0:01:28]} 17. h3 {[%clk 0:01:55]}  Rad8 {[%clk 0:01:21]} 18. Qe1 {[%clk 0:01:55]}  Bc8 {[%clk 0:01:15]} 19. Qc3 {[%clk 0:01:51]}  a5 {[%clk 0:00:50]} 20. Be3 {[%clk 0:01:44]}  Rd6 {[%clk 0:00:31]} 21. Bc5 {[%clk 0:01:40]}  Rdd8 {[%clk 0:00:30]} 22. Be3 {[%clk 0:01:39]}  Rd6 {[%clk 0:00:30]} 23. Rfd1 {[%clk 0:01:39]}  Red8 {[%clk 0:00:28]} 24. Rxd6 {[%clk 0:01:35]}  Rxd6 {[%clk 0:00:28]} 25. g4 {[%clk 0:01:25]}  h6 {[%clk 0:00:25]} 26. Ng6 {[%clk 0:01:21]}  Qf7 {[%clk 0:00:21]} 27. Ne5 {[%clk 0:01:17]}  Nxe5 {[%clk 0:00:21]} 28. Qxe5 {[%clk 0:01:18]}  a4 {[%clk 0:00:21]} 29. Qa5 {[%clk 0:01:17]}  Ra6 {[%clk 0:00:20]} 30. Qb4 {[%clk 0:00:52]}  a3 {[%clk 0:00:19]} 31. Qb8 {[%clk 0:00:52]}  Qe8 {[%clk 0:00:13]} 32. Bd4 {[%clk 0:00:34]}  a2 {[%clk 0:00:06]} 33. Ba1 {[%clk 0:00:34]}  Rb6 {[%clk 0:00:04]} 34. Qxc7 {[%clk 0:00:34]}  Rb1 {[%clk 0:00:04]} 35. Kh2 {[%clk 0:00:20]}  Rxc1 {[%clk 0:00:03]} 36. Qxc1 {[%clk 0:00:21]}  Qe6 {[%clk 0:00:02]} 37. Qc7 {[%clk 0:00:16]}  e3 {[%clk 0:00:01]} 38. f4 {[%clk 0:00:16]}  Kh7 {[%clk 0:00:01]} 39. Bf3 {[%clk 0:00:12]}  Qd7 {[%clk 0:00:02]} 40. Qc3 {[%clk 0:00:11]}  Qd2 {[%clk 0:00:01]} 41. Qxc8 {[%clk 0:00:11]}  Qe1 {[%clk 0:00:01]} 42. Qf5+ {[%clk 0:00:08]}  Kg8 {[%clk 0:00:01]} 43. Qe6+ {[%clk 0:00:07]} 1-0


[Site "https://www.chess.com"]

[Event "Titled Tuesday Blitz June 1 2021"]
[White "Piesik, Piotr"]
[Black "NovakCabarkapa"]
[WhiteFideId "1136194"]
[WhiteElo "2369"]
[BlackElo "2802"]
[Result "0-1"]
[Round "09"]
[TimeControl "180+1"]
[Date "2021.06.01"]
[WhiteClock "0:01:10"]
[BlackClock "0:00:31"]

1. Nf3 {[%clk 0:03:00]}  h5 {[%clk 0:02:54]} 2. e4 {[%clk 0:02:55]}  h4 {[%clk 0:02:54]} 3. h3 {[%clk 0:02:54]}  d5 {[%clk 0:02:54]} 4. e5 {[%clk 0:02:54]}  Bf5 {[%clk 0:02:52]} 5. d4 {[%clk 0:02:52]}  e6 {[%clk 0:02:52]} 6. Bg5 {[%clk 0:02:51]}  Be7 {[%clk 0:02:52]} 7. Bxe7 {[%clk 0:02:51]}  Nxe7 {[%clk 0:02:47]} 8. Nbd2 {[%clk 0:02:50]}  c5 {[%clk 0:02:47]} 9. dxc5 {[%clk 0:02:48]}  Qa5 {[%clk 0:02:34]} 10. Nd4 {[%clk 0:02:46]}  Qxc5 {[%clk 0:02:31]} 11. N2b3 {[%clk 0:02:46]}  Qc7 {[%clk 0:02:31]} 12. Nb5 {[%clk 0:02:44]}  Qxe5+ {[%clk 0:02:31]} 13. Qe2 {[%clk 0:02:43]}  Qf4 {[%clk 0:02:12]} 14. Qd2 {[%clk 0:02:27]}  Qxd2+ {[%clk 0:01:56]} 15. Kxd2 {[%clk 0:02:28]}  Kd7 {[%clk 0:01:56]} 16. Nc5+ {[%clk 0:02:24]}  Kc6 {[%clk 0:01:56]} 17. b4 {[%clk 0:02:24]}  b6 {[%clk 0:01:35]} 18. Nd4+ {[%clk 0:02:22]}  Kd6 {[%clk 0:01:33]} 19. Nb5+ {[%clk 0:02:16]}  Kc6 {[%clk 0:01:32]} 20. Nd4+ {[%clk 0:02:16]}  Kc7 {[%clk 0:01:31]} 21. Nb5+ {[%clk 0:02:16]}  Kd8 {[%clk 0:01:24]} 22. Nb7+ {[%clk 0:02:04]}  Kd7 {[%clk 0:01:22]} 23. N7d6 {[%clk 0:02:05]}  a6 {[%clk 0:01:14]} 24. Nxf5 {[%clk 0:02:04]}  Nxf5 {[%clk 0:01:13]} 25. Nc3 {[%clk 0:02:02]}  Rc8 {[%clk 0:00:58]} 26. Bd3 {[%clk 0:01:59]}  Nd6 {[%clk 0:00:55]} 27. Ne2 {[%clk 0:01:53]}  Nc6 {[%clk 0:00:52]} 28. a3 {[%clk 0:01:51]}  Ne5 {[%clk 0:00:53]} 29. f4 {[%clk 0:01:48]}  Nec4+ {[%clk 0:00:49]} 30. Bxc4 {[%clk 0:01:48]}  Rxc4 {[%clk 0:00:47]} 31. c3 {[%clk 0:01:42]}  Rac8 {[%clk 0:00:48]} 32. Rac1 {[%clk 0:01:40]}  Ne4+ {[%clk 0:00:48]} 33. Ke3 {[%clk 0:01:30]}  Nxc3 {[%clk 0:00:47]} 34. Nd4 {[%clk 0:01:30]}  Ne4 {[%clk 0:00:44]} 35. Rxc4 {[%clk 0:01:29]}  Rxc4 {[%clk 0:00:44]} 36. Nf3 {[%clk 0:01:29]}  Rc3+ {[%clk 0:00:42]} 37. Kd4 {[%clk 0:01:29]}  f6 {[%clk 0:00:35]} 38. Re1 {[%clk 0:01:19]}  Kd6 {[%clk 0:00:31]} 39. Rxe4 {[%clk 0:01:10]}  Rc4+ {[%clk 0:00:31]} 0-1


[Site "https://www.chess.com"]

[Event "Titled Tuesday Blitz June 1 2021"]
[White "Sarana, Alexey"]
[Black "Fier, Alexandr"]
[WhiteFideId "24133795"]
[BlackFideId "2107139"]
[WhiteElo "2629"]
[BlackElo "2569"]
[Result "1-0"]
[Round "09"]
[TimeControl "180+1"]
[Date "2021.06.01"]
[WhiteClock "0:01:00"]
[BlackClock "0:00:30"]

1. d4 {[%clk 0:03:00]}  Nf6 {[%clk 0:02:59]} 2. c4 {[%clk 0:02:53]}  c5 {[%clk 0:02:59]} 3. d5 {[%clk 0:02:53]}  e6 {[%clk 0:03:00]} 4. Nc3 {[%clk 0:02:53]}  exd5 {[%clk 0:03:01]} 5. cxd5 {[%clk 0:02:53]}  d6 {[%clk 0:03:01]} 6. e4 {[%clk 0:02:52]}  g6 {[%clk 0:03:02]} 7. Nf3 {[%clk 0:02:50]}  Bg7 {[%clk 0:03:02]} 8. Be2 {[%clk 0:02:50]}  O-O {[%clk 0:03:02]} 9. Be3 {[%clk 0:02:51]}  Ng4 {[%clk 0:02:43]} 10. Bg5 {[%clk 0:02:50]}  Qb6 {[%clk 0:02:43]} 11. Qd2 {[%clk 0:02:48]}  Nd7 {[%clk 0:02:39]} 12. O-O {[%clk 0:02:47]}  Re8 {[%clk 0:02:39]} 13. Ne1 {[%clk 0:02:32]}  Nge5 {[%clk 0:02:33]} 14. f4 {[%clk 0:02:14]}  c4+ {[%clk 0:02:29]} 15. Kh1 {[%clk 0:02:14]}  Nd3 {[%clk 0:02:30]} 16. Nxd3 {[%clk 0:02:12]}  cxd3 {[%clk 0:02:31]} 17. Bxd3 {[%clk 0:02:13]}  Nc5 {[%clk 0:02:30]} 18. Rae1 {[%clk 0:02:06]}  Bd7 {[%clk 0:02:29]} 19. Bb1 {[%clk 0:02:01]}  Rac8 {[%clk 0:02:29]} 20. e5 {[%clk 0:02:00]}  dxe5 {[%clk 0:02:27]} 21. f5 {[%clk 0:02:01]}  gxf5 {[%clk 0:02:16]} 22. Bxf5 {[%clk 0:01:58]}  Bxf5 {[%clk 0:02:16]} 23. Rxf5 {[%clk 0:01:58]}  Qg6 {[%clk 0:02:17]} 24. Ref1 {[%clk 0:01:58]}  Rc7 {[%clk 0:01:44]} 25. d6 {[%clk 0:01:39]}  Rd7 {[%clk 0:01:44]} 26. Be7 {[%clk 0:01:39]}  Ne6 {[%clk 0:01:16]} 27. Nd5 {[%clk 0:01:11]}  Nf4 {[%clk 0:00:58]} 28. Rg5 {[%clk 0:01:10]}  Qh6 {[%clk 0:00:31]} 29. Nf6+ {[%clk 0:01:05]}  Kh8 {[%clk 0:00:30]} 30. Nxd7 {[%clk 0:01:00]} 1-0


[Site "https://www.chess.com"]

[Event "Titled Tuesday Blitz June 1 2021"]
[White "Shahade, Gregory"]
[Black "Terry, Renato"]
[WhiteFideId "2009064"]
[BlackFideId "3803457"]
[WhiteElo "2717"]
[BlackElo "2581"]
[Result "0-1"]
[Round "09"]
[TimeControl "180+1"]
[Date "2021.06.01"]
[WhiteClock "0:00:05"]
[BlackClock "0:00:07"]

1. e4 {[%clk 0:03:00]}  e6 {[%clk 0:02:59]} 2. d4 {[%clk 0:03:00]}  d5 {[%clk 0:03:00]} 3. Nd2 {[%clk 0:03:00]}  Be7 {[%clk 0:02:59]} 4. Ngf3 {[%clk 0:03:00]}  Nf6 {[%clk 0:02:59]} 5. e5 {[%clk 0:03:00]}  Nfd7 {[%clk 0:02:59]} 6. c3 {[%clk 0:03:01]}  c5 {[%clk 0:03:00]} 7. Bd3 {[%clk 0:03:02]}  Nc6 {[%clk 0:03:00]} 8. O-O {[%clk 0:03:00]}  a5 {[%clk 0:03:00]} 9. a4 {[%clk 0:03:00]}  Qb6 {[%clk 0:02:59]} 10. dxc5 {[%clk 0:02:45]}  Nxc5 {[%clk 0:02:58]} 11. Bb5 {[%clk 0:02:41]}  O-O {[%clk 0:02:54]} 12. Re1 {[%clk 0:02:41]}  Rd8 {[%clk 0:02:44]} 13. Nf1 {[%clk 0:02:41]}  Na7 {[%clk 0:02:36]} 14. Nd4 {[%clk 0:02:30]}  Nxb5 {[%clk 0:02:34]} 15. axb5 {[%clk 0:02:24]}  Bd7 {[%clk 0:02:32]} 16. Qe2 {[%clk 0:02:19]}  a4 {[%clk 0:02:19]} 17. Be3 {[%clk 0:02:18]}  Qc7 {[%clk 0:02:19]} 18. Nd2 {[%clk 0:02:04]}  Qxe5 {[%clk 0:02:12]} 19. N4f3 {[%clk 0:01:42]}  Qh5 {[%clk 0:02:10]} 20. Bd4 {[%clk 0:01:38]}  f6 {[%clk 0:02:00]} 21. c4 {[%clk 0:01:35]}  e5 {[%clk 0:01:45]} 22. Bxc5 {[%clk 0:01:35]}  Bxc5 {[%clk 0:01:46]} 23. cxd5 {[%clk 0:01:35]}  Qe8 {[%clk 0:01:26]} 24. Qc4 {[%clk 0:01:23]}  Rdc8 {[%clk 0:01:10]} 25. Qh4 {[%clk 0:01:12]}  Bxb5 {[%clk 0:00:52]} 26. Ne4 {[%clk 0:01:12]}  Bf8 {[%clk 0:00:50]} 27. Qg3 {[%clk 0:01:12]}  Qg6 {[%clk 0:00:49]} 28. Qh3 {[%clk 0:01:09]}  Rd8 {[%clk 0:00:45]} 29. Rad1 {[%clk 0:01:05]}  Bd7 {[%clk 0:00:44]} 30. Qh4 {[%clk 0:01:03]}  Qg4 {[%clk 0:00:43]} 31. h3 {[%clk 0:00:37]}  Qxh4 {[%clk 0:00:43]} 32. Nxh4 {[%clk 0:00:38]}  Ra5 {[%clk 0:00:35]} 33. Re3 {[%clk 0:00:24]}  Kf7 {[%clk 0:00:22]} 34. Nc3 {[%clk 0:00:21]}  b5 {[%clk 0:00:16]} 35. Nf3 {[%clk 0:00:20]}  b4 {[%clk 0:00:16]} 36. Ne4 {[%clk 0:00:20]}  Bf5 {[%clk 0:00:15]} 37. Ng3 {[%clk 0:00:18]}  Bc2 {[%clk 0:00:15]} 38. Rd2 {[%clk 0:00:18]}  b3 {[%clk 0:00:15]} 39. Rc3 {[%clk 0:00:07]}  Rd7 {[%clk 0:00:15]} 40. Ne1 {[%clk 0:00:05]}  Bb4 {[%clk 0:00:15]} 41. Nxc2 {[%clk 0:00:04]}  bxc2 {[%clk 0:00:15]} 42. Rdxc2 {[%clk 0:00:04]}  Bxc3 {[%clk 0:00:16]} 43. Rxc3 {[%clk 0:00:05]}  Raxd5 {[%clk 0:00:16]} 44. Nf5 {[%clk 0:00:05]}  Rd1+ {[%clk 0:00:14]} 45. Kh2 {[%clk 0:00:05]}  R1d2 {[%clk 0:00:15]} 46. Ra3 {[%clk 0:00:04]}  Rxf2 {[%clk 0:00:14]} 47. Ne3 {[%clk 0:00:05]}  Rxb2 {[%clk 0:00:13]} 48. Rxa4 {[%clk 0:00:05]}  Rb3 {[%clk 0:00:13]} 49. Ng4 {[%clk 0:00:05]}  h5 {[%clk 0:00:12]} 50. Nf2 {[%clk 0:00:05]}  f5 {[%clk 0:00:11]} 51. Ra5 {[%clk 0:00:05]}  Re7 {[%clk 0:00:12]} 52. h4 {[%clk 0:00:03]}  Kf6 {[%clk 0:00:11]} 53. Nh3 {[%clk 0:00:04]}  Rxh3+ {[%clk 0:00:09]} 54. Kxh3 {[%clk 0:00:05]}  e4 {[%clk 0:00:10]} 55. Kg3 {[%clk 0:00:05]}  e3 {[%clk 0:00:10]} 56. Ra1 {[%clk 0:00:05]}  e2 {[%clk 0:00:09]} 57. Re1 {[%clk 0:00:05]}  Re3+ {[%clk 0:00:07]} 58. Kf4 {[%clk 0:00:05]}  Re4+ {[%clk 0:00:07]} 59. Kg3 {[%clk 0:00:05]}  Ke5 {[%clk 0:00:06]} 60. Kf3 {[%clk 0:00:05]}  Kd4 {[%clk 0:00:07]} 61. g3 {[%clk 0:00:06]}  Kd3 {[%clk 0:00:07]} 62. Kf2 {[%clk 0:00:06]}  Kd2 {[%clk 0:00:07]} 63. Rxe2+ {[%clk 0:00:03]}  Rxe2+ {[%clk 0:00:07]} 64. Kf3 {[%clk 0:00:04]}  Re4 {[%clk 0:00:07]} 65. Kg2 {[%clk 0:00:04]}  Rg4 {[%clk 0:00:07]} 66. Kh3 {[%clk 0:00:04]}  Ke3 {[%clk 0:00:07]} 67. Kh2 {[%clk 0:00:05]}  Kf2 {[%clk 0:00:07]} 68. Kh1 {[%clk 0:00:05]} 0-1


[Site "https://www.chess.com"]

[Event "Titled Tuesday Blitz June 1 2021"]
[White "Aldokhin, Ivan"]
[Black "Tristan, Leonardo"]
[WhiteFideId "24115720"]
[BlackFideId "113816"]
[WhiteElo "2306"]
[BlackElo "2404"]
[Result "0-1"]
[Round "10"]
[TimeControl "180+1"]
[Date "2021.06.01"]
[WhiteClock "0:00:01"]
[BlackClock "0:00:17"]

1. e4 {[%clk 0:03:00]}  d6 {[%clk 0:02:59]} 2. d4 {[%clk 0:02:53]}  Nf6 {[%clk 0:02:59]} 3. Nc3 {[%clk 0:02:49]}  g6 {[%clk 0:02:59]} 4. Bg5 {[%clk 0:02:49]}  Bg7 {[%clk 0:02:59]} 5. Qd2 {[%clk 0:02:49]}  h6 {[%clk 0:02:59]} 6. Bh4 {[%clk 0:02:46]}  g5 {[%clk 0:02:59]} 7. Bg3 {[%clk 0:02:46]}  Nh5 {[%clk 0:03:00]} 8. Nge2 {[%clk 0:02:45]}  Nc6 {[%clk 0:02:58]} 9. O-O-O {[%clk 0:02:41]}  Bd7 {[%clk 0:02:58]} 10. e5 {[%clk 0:02:25]}  dxe5 {[%clk 0:02:34]} 11. d5 {[%clk 0:02:25]}  Nd4 {[%clk 0:02:33]} 12. Nxd4 {[%clk 0:01:57]}  exd4 {[%clk 0:02:33]} 13. Nb5 {[%clk 0:01:58]}  Nxg3 {[%clk 0:02:25]} 14. hxg3 {[%clk 0:01:57]}  Bxb5 {[%clk 0:02:17]} 15. Bxb5+ {[%clk 0:01:56]}  Kf8 {[%clk 0:02:18]} 16. Bc4 {[%clk 0:01:38]}  b5 {[%clk 0:02:18]} 17. Bxb5 {[%clk 0:01:23]}  Qxd5 {[%clk 0:02:17]} 18. Qd3 {[%clk 0:01:24]}  Rb8 {[%clk 0:02:12]} 19. Bc4 {[%clk 0:01:23]}  Qxg2 {[%clk 0:02:11]} 20. Qf5 {[%clk 0:01:15]}  Bf6 {[%clk 0:02:10]} 21. Rhe1 {[%clk 0:00:47]}  Qb7 {[%clk 0:02:01]} 22. Bb3 {[%clk 0:00:44]}  Qb5 {[%clk 0:02:01]} 23. Qf3 {[%clk 0:00:38]}  a5 {[%clk 0:01:59]} 24. a4 {[%clk 0:00:36]}  Qc5 {[%clk 0:01:58]} 25. Kb1 {[%clk 0:00:33]}  h5 {[%clk 0:01:55]} 26. Re4 {[%clk 0:00:31]}  Kg7 {[%clk 0:01:48]} 27. Rde1 {[%clk 0:00:31]}  e6 {[%clk 0:01:36]} 28. Qg2 {[%clk 0:00:16]}  d3 {[%clk 0:01:32]} 29. Rc4 {[%clk 0:00:14]}  dxc2+ {[%clk 0:01:21]} 30. Kxc2 {[%clk 0:00:14]}  Qf5+ {[%clk 0:01:19]} 31. Ree4 {[%clk 0:00:13]}  Rxb3 {[%clk 0:01:13]} 32. Kxb3 {[%clk 0:00:13]}  Rb8+ {[%clk 0:01:14]} 33. Ka3 {[%clk 0:00:11]}  Rxb2 {[%clk 0:01:02]} 34. g4 {[%clk 0:00:11]}  hxg4 {[%clk 0:01:01]} 35. Qxg4 {[%clk 0:00:11]}  Qxf2 {[%clk 0:00:58]} 36. Rxc7 {[%clk 0:00:11]}  Ra2+ {[%clk 0:00:56]} 37. Kb3 {[%clk 0:00:12]}  Qb2+ {[%clk 0:00:54]} 38. Kc4 {[%clk 0:00:12]}  Rxa4+ {[%clk 0:00:55]} 39. Kc5 {[%clk 0:00:12]}  Qc2+ {[%clk 0:00:51]} 40. Rc4 {[%clk 0:00:08]}  Rxc4+ {[%clk 0:00:35]} 41. Qxc4 {[%clk 0:00:08]}  Qxc4+ {[%clk 0:00:35]} 42. Kxc4 {[%clk 0:00:09]}  Kg6 {[%clk 0:00:32]} 43. Ra7 {[%clk 0:00:08]}  Bd8 {[%clk 0:00:30]} 44. Ra8 {[%clk 0:00:07]}  Bb6 {[%clk 0:00:30]} 45. Ra6 {[%clk 0:00:07]}  Bf2 {[%clk 0:00:30]} 46. Rxa5 {[%clk 0:00:06]}  f5 {[%clk 0:00:29]} 47. Kd3 {[%clk 0:00:04]}  g4 {[%clk 0:00:28]} 48. Ra8 {[%clk 0:00:03]}  e5 {[%clk 0:00:26]} 49. Ke2 {[%clk 0:00:03]}  Bd4 {[%clk 0:00:25]} 50. Rg8+ {[%clk 0:00:02]}  Kf6 {[%clk 0:00:26]} 51. Rc8 {[%clk 0:00:03]}  Kg5 {[%clk 0:00:26]} 52. Rc6 {[%clk 0:00:03]}  Kf4 {[%clk 0:00:26]} 53. Rc8 {[%clk 0:00:04]}  Ke4 {[%clk 0:00:27]} 54. Rf8 {[%clk 0:00:03]}  g3 {[%clk 0:00:26]} 55. Kf1 {[%clk 0:00:04]}  f4 {[%clk 0:00:26]} 56. Kg2 {[%clk 0:00:04]}  Bf2 {[%clk 0:00:26]} 57. Rf7 {[%clk 0:00:03]}  Ke3 {[%clk 0:00:26]} 58. Rb7 {[%clk 0:00:02]}  f3+ {[%clk 0:00:27]} 59. Kh3 {[%clk 0:00:02]}  g2 {[%clk 0:00:26]} 60. Rb3+ {[%clk 0:00:02]}  Ke2 {[%clk 0:00:24]} 61. Rb1 {[%clk 0:00:02]}  g1=Q {[%clk 0:00:24]} 62. Rb2+ {[%clk 0:00:02]}  Kd3 {[%clk 0:00:21]} 63. Rd2+ {[%clk 0:00:02]}  Ke4 {[%clk 0:00:21]} 64. Re2+ {[%clk 0:00:01]}  Kd4 {[%clk 0:00:17]} 65. Re4+ {[%clk 0:00:02]}  Kd3 {[%clk 0:00:17]} 66. Rd4+ {[%clk 0:00:01]}  Bxd4 {[%clk 0:00:17]} 0-1


[Site "https://www.chess.com"]